fUSD/lending_fUSD_20250708
["ID","MTS","AMOUNT","RATE_DAILY","PERIOD"]
[370425369,1752015048005,-1249.6,0.00024657,2]
[370425370,1752015048016,-674.169775,0.00024657,7]
[370425371,1752015048025,-674.169775,0.00024657,7]
[370425372,1752015048035,-460.0,0.00024657,2]
[370425373,1752015048045,-674.169775,0.00024657,7]
[370425374,1752015048055,-674.169775,0.00024657,7]
[370425375,1752015048064,-674.169775,0.00024657,7]
[370425376,1752015048075,-460.0,0.00024657,2]
[370425377,1752015048084,-674.169775,0.00024657,7]
[370425378,1752015048093,-674.169775,0.00024657,7]
[370425379,1752015048102,-460.0,0.00024657,2]
[370425380,1752015048112,-674.169775,0.00024657,7]
[370425381,1752015048122,-674.169775,0.00024657,7]
[370425382,1752015048131,-374.5371507,0.00024657,2]
[370425383,1752015048140,-674.169775,0.00024657,7]
[370425384,1752015048150,-460.0,0.00024657,2]
[370425385,1752015048159,-674.169775,0.00024657,7]
[370425386,1752015048168,-674.169775,0.00024657,7]
[370425387,1752015048178,-674.169775,0.00024657,7]
[370425388,1752015048187,-460.0,0.00024657,2]
[370425389,1752015048197,-674.169775,0.00024657,7]
[370425390,1752015048206,-1105.17,0.00024657,2]
[370425391,1752015048215,-674.169775,0.00024657,7]
[370425392,1752015048224,-674.169775,0.00024657,7]
[370425393,1752015048234,-460.0,0.00024657,2]
[370425394,1752015048244,-674.169775,0.00024657,7]
[370425395,1752015048253,-833.59,0.00024657,2]
[370425396,1752015048262,-460.0,0.00024657,2]
[370425397,1752015048273,-460.0,0.00024657,2]
[370425398,1752015048283,-674.169775,0.00024657,7]
[370425399,1752015048293,-674.169781,0.00024657,7]
[370425400,1752015048304,-460.0,0.00024657,2]
[370425401,1752015048314,-499.39,0.00024657,2]
[370425402,1752015048324,-460.0,0.00024657,2]
[370425403,1752015048334,-1046.53,0.00024657,2]
[370425404,1752015048344,-467.29,0.00024657,2]
[370425405,1752015048355,-460.0,0.00024657,2]
[370425406,1752015048366,-460.0,0.00024657,2]
[370425407,1752015048376,-1239.1,0.00024657,2]
[370425408,1752015048387,-460.0,0.00024657,2]
[370425409,1752015048397,-460.0,0.00024657,2]
[370425410,1752015048407,-1554.43,0.00024657,2]
[370425411,1752015048418,-1642.19,0.00024657,2]
[370425412,1752015048429,-1313.7,0.00024657,2]
[370425413,1752015048439,-460.0,0.00024657,2]
[370425414,1752015048449,-602.8,0.00024657,2]
[370425415,1752015048458,-460.0,0.00024657,2]
[370425416,1752015048468,-902.69,0.00024657,2]
[370425417,1752015048478,-460.0,0.00024657,2]
[370425418,1752015048488,-1201.45,0.00024657,2]
[370425419,1752015048498,-460.0,0.00024657,2]
[370425420,1752015048508,-2103.01,0.00024657,2]
[370425421,1752015048518,-460.0,0.00024657,2]
[370425422,1752015048528,-460.0,0.00024657,2]
[370425423,1752015048538,-2904.39,0.00024657,2]
[370425424,1752015048548,-980.81,0.00024657,2]
[370425425,1752015048558,-1165.94,0.00024657,2]
[370425426,1752015048567,-1243.37,0.00024657,2]
[370425427,1752015048577,-1329.71,0.00024657,2]
[370425428,1752015048586,-460.0,0.00024657,2]
[370425429,1752015048596,-460.0,0.00024657,2]
[370425430,1752015048606,-600.22,0.00024657,2]
[370425431,1752015048616,-564.13,0.00024657,2]
[370425432,1752015048626,-564.13,0.00024657,2]
[370425433,1752015048637,-460.0,0.00024657,2]
[370425434,1752015048646,-564.13,0.00024657,2]
[370425435,1752015048656,-487.1,0.00024657,2]
[370425436,1752015048667,-911.41,0.00024657,2]
[370425437,1752015048676,-564.13,0.00024657,2]
[370425438,1752015048686,-460.0,0.00024657,2]
[370425439,1752015048695,-564.13,0.00024657,2]
[370425440,1752015048705,-564.13,0.00024657,2]
[370425441,1752015048715,-460.0,0.00024657,2]
[370425442,1752015048724,-564.13,0.00024657,2]
[370425443,1752015048734,-564.13,0.00024657,2]
[370425444,1752015048743,-460.0,0.00024657,2]
[370425445,1752015048753,-1692.54,0.00024657,2]
[370425446,1752015048762,-460.0,0.00024657,2]
[370425447,1752015048772,-460.0,0.00024657,2]
[370425448,1752015048782,-460.0,0.00024657,2]
[370425449,1752015048791,-460.0,0.00024657,2]
[370425450,1752015048801,-460.0,0.00024657,2]
[370425451,1752015048810,-517.81,0.00024657,2]
[370425452,1752015048821,-886.5,0.00024657,2]
[370425453,1752015048832,-509.74,0.00024657,2]
[370425454,1752015048842,-460.0,0.00024657,2]
[370425455,1752015048852,-1604.48,0.00024657,2]
[370425456,1752015048862,-151.0,0.00024657,7]
[370425457,1752015048874,-151.0,0.00024657,7]
[370425458,1752015048883,-460.0,0.00024657,2]
[370425459,1752015048893,-460.0,0.00024657,2]
[370425460,1752015048904,-551.560692,0.00024657,2]
[370425461,1752015048915,-151.0,0.00024657,7]
[370425462,1752015048925,-151.0,0.00024657,7]
[370425463,1752015048934,-152.019496,0.00024657,7]
[370425464,1752015048944,-460.0,0.00024657,2]
[370425465,1752015048953,-595.03,0.00024657,2]
[370425466,1752015048963,-460.0,0.00024657,2]
[370425467,1752015048972,-706.27,0.00024657,2]
[370425468,1752015048982,-460.0,0.00024657,2]
[370425469,1752015048992,-972.64,0.00024657,2]
[370425470,1752015049001,-506.89,0.00024657,2]
[370425471,1752015049011,-581.03,0.00024657,2]
[370425472,1752015049020,-602.37,0.00024657,2]
[370425473,1752015049029,-460.0,0.00024657,2]
[370425474,1752015049039,-1867.79,0.00024657,2]
[370425475,1752015049049,-460.0,0.00024657,2]
[370425476,1752015049059,-708.82,0.00024657,2]
[370425477,1752015049069,-151.0,0.00024657,7]
[370425478,1752015049079,-1296.24,0.00024657,2]
[370425479,1752015049089,-946.45,0.00024657,2]
[370425480,1752015049099,-460.0,0.00024657,2]
[370425481,1752015049109,-523.13,0.00024657,2]
[370425482,1752015049119,-460.04,0.00024657,2]
[370425483,1752015049129,-660.6,0.00024657,2]
[370425484,1752015049139,-490.0,0.00024657,2]
[370425485,1752015049149,-1803.42,0.00024657,2]
[370425486,1752015049159,-460.0,0.00024657,2]
[370425487,1752015049169,-791.04,0.00024657,2]
[370425488,1752015049537,-460.0,0.00024657,2]
[370425489,1752015049548,-460.0,0.00024657,2]
[370425490,1752015049560,-753.16,0.00024657,2]
[370425491,1752015049573,-2324.81,0.00024657,2]
[370425492,1752015049583,-151.0,0.00024657,7]
[370425493,1752015049593,-151.0,0.00024657,7]
[370425494,1752015049602,-460.0,0.00024657,2]
[370425495,1752015049612,-151.0,0.00024657,7]
[370425496,1752015049621,-151.0,0.00024657,7]
[370425497,1752015049631,-460.0,0.00024657,2]
[370425498,1752015049640,-460.0,0.00024657,2]
[370425499,1752015049651,-704.69,0.00024657,2]
[370425500,1752015049661,-460.0,0.00024657,2]
[370425501,1752015049671,-481.28,0.00024657,2]
[370425502,1752015049683,-2222.67,0.00024657,2]
[370425503,1752015049696,-460.0,0.00024657,2]
[370425504,1752015049706,-460.0,0.00024657,2]
[370425505,1752015049718,-151.0,0.00024657,7]
[370425506,1752015049729,-151.0,0.00024657,7]
[370425507,1752015049739,-1813.32,0.00024657,2]
[370425508,1752015049750,-460.0,0.00024657,2]
[370425509,1752015049760,-151.0,0.00024657,7]
[370425510,1752015049771,-924.03,0.00024657,2]
[370425511,1752015049782,-460.0,0.00024657,2]
[370425512,1752015049793,-151.0,0.00024657,7]
[370425513,1752015049803,-151.0,0.00024657,7]
[370425514,1752015049813,-151.0,0.00024657,7]
[370425515,1752015049824,-151.0,0.00024657,7]
[370425516,1752015049835,-940.71,0.00024657,2]
[370425517,1752015049844,-151.0,0.00024657,7]
[370425518,1752015049854,-151.0,0.00024657,7]
[370425519,1752015049865,-934.14,0.00024657,2]
[370425520,1752015049877,-460.0,0.00024657,2]
[370425521,1752015049888,-151.0,0.00024657,7]
[370425522,1752015049899,-151.0,0.00024657,7]
[370425523,1752015049909,-151.0,0.00024657,7]
[370425524,1752015049920,-460.0,0.00024657,2]
[370425525,1752015049931,-151.0,0.00024657,7]
[370425526,1752015049942,-151.0,0.00024657,7]
[370425527,1752015049953,-1772.27,0.00024657,2]
[370425528,1752015049963,-460.0,0.00024657,2]
[370425529,1752015049972,-863.86,0.00024657,2]
[370425530,1752015049983,-460.0,0.00024657,2]
[370425531,1752015049994,-219.161675,0.00024657,7]
[370425532,1752015050005,-2128.28,0.00024657,2]
[370425533,1752015050016,-460.0,0.00024657,2]
[370425534,1752015050027,-460.0,0.00024657,2]
[370425535,1752015050037,-460.0,0.00024657,2]
[370425536,1752015050047,-9800.0,0.00024657,2]
[370425537,1752015050057,-460.0,0.00024657,2]
[370425538,1752015050067,-1021.16,0.00024657,2]
[370425539,1752015050078,-460.0,0.00024657,2]
[370425540,1752015050088,-3055.97,0.00024657,2]
[370425541,1752015050099,-460.0,0.00024657,2]
[370425542,1752015050111,-460.0,0.00024657,2]
[370425543,1752015050122,-151.0,0.00024657,7]
[370425544,1752015050133,-151.0,0.00024657,7]
[370425545,1752015050144,-278.2066,0.00024657,7]
[370425546,1752015050155,-460.0,0.00024657,2]
[370425547,1752015050166,-460.0,0.00024657,2]
[370425548,1752015050175,-719.41,0.00024657,2]
[370425549,1752015050187,-460.0,0.00024657,2]
[370425550,1752015050199,-460.0,0.00024657,2]
[370425551,1752015050209,-943.36,0.00024657,2]
[370425552,1752015050219,-3625.36,0.00024657,2]
[370425553,1752015050228,-693.22,0.00024657,2]
[370425554,1752015050238,-460.0,0.00024657,2]
[370425555,1752015050248,-771.52,0.00024657,2]
[370425556,1752015050257,-812.3,0.00024657,2]
[370425557,1752015050267,-460.0,0.00024657,2]
[370425558,1752015050279,-755.78,0.00024657,2]
[370425559,1752015050291,-2532.89,0.00024657,2]
[370425560,1752015050301,-1272.28,0.00024657,2]
[370425561,1752015050311,-4999.35,0.00024657,2]
[370425562,1752015050321,-549.95,0.00024657,2]
[370425563,1752015050330,-460.0,0.00024657,2]
[370425564,1752015050339,-480.25952535,0.00024657,2]
[370425565,1752015050349,-460.0,0.00024657,2]
[370425566,1752015050358,-460.0,0.00024657,2]
[370425567,1752015050367,-780.45,0.00024657,2]
[370425568,1752015050377,-1337.53,0.00024657,2]
[370425569,1752015050387,-460.0,0.00024657,2]
[370425570,1752015050397,-460.0,0.00024657,2]
[370425571,1752015050408,-460.0,0.00024657,2]
[370425572,1752015050421,-460.0,0.00024657,2]
[370425573,1752015050431,-460.0,0.00024657,2]
[370425574,1752015050441,-525.93,0.00024657,2]
[370425575,1752015050451,-1074.28,0.00024657,2]
[370425576,1752015050461,-1625.8,0.00024657,2]
[370425577,1752015050471,-795.24,0.00024657,2]
[370425578,1752015050480,-460.0,0.00024657,2]
[370425579,1752015050490,-460.0,0.00024657,2]
[370425580,1752015050500,-900.61,0.00024657,2]
[370425581,1752015050510,-1759.3,0.00024657,2]
[370425582,1752015050520,-460.0,0.00024657,2]
[370425583,1752015050530,-508.05,0.00024657,2]
[370425584,1752015050539,-460.0,0.00024657,2]
[370425585,1752015050549,-734.98,0.00024657,2]
[370425586,1752015050558,-646.31,0.00024657,2]
[370425587,1752015050568,-460.0,0.00024657,2]
[370425588,1752015050578,-2158.79,0.00024657,2]
[370425589,1752015050587,-180.50548272,0.00024657,2]
[370425590,1752015050597,-1229.73,0.00024657,2]
[370425591,1752015050607,-1240.91,0.00024657,2]
[370425592,1752015050616,-460.0,0.00024657,2]
[370425593,1752015050626,-151.0,0.00024657,7]
[370425594,1752015050635,-496.75,0.00024657,2]
[370425595,1752015050644,-151.0,0.00024657,7]
[370425596,1752015050653,-460.0,0.00024657,2]
[370425597,1752015050663,-460.0,0.00024657,2]
[370425598,1752015050672,-1968.84,0.00024657,2]
[370425599,1752015050682,-246.007537,0.00024657,7]
[370425600,1752015050692,-4646.74,0.00024657,2]
[370425601,1752015050701,-460.0,0.00024657,2]
[370425602,1752015050711,-910.35,0.00024657,2]
[370425603,1752015050720,-1152.63,0.00024657,2]
[370425604,1752015050730,-733.89,0.00024657,2]
[370425605,1752015050739,-547.9,0.00024657,2]
[370425606,1752015050748,-460.0,0.00024657,2]
[370425607,1752015050757,-2017.91,0.00024657,2]
[370425608,1752015050766,-3144.26,0.00024657,2]
[370425609,1752015050776,-566.49,0.00024657,2]
[370425610,1752015050785,-460.0,0.00024657,2]
[370425611,1752015050794,-460.0,0.00024657,2]
[370425612,1752015050804,-510.06,0.00024657,2]
[370425613,1752015050813,-510.06,0.00024657,2]
[370425614,1752015050828,-460.0,0.00024657,2]
[370425615,1752015050839,-510.06,0.00024657,2]
[370425616,1752015050849,-510.06,0.00024657,2]
[370425617,1752015050859,-510.06,0.00024657,2]
[370425618,1752015050870,-1922.82,0.00024657,2]
[370425619,1752015050880,-510.06,0.00024657,2]
[370425620,1752015050889,-593.46,0.00024657,2]
[370425621,1752015050899,-510.06,0.00024657,2]
[370425622,1752015050908,-539.1,0.00024657,2]
[370425623,1752015050918,-510.06,0.00024657,2]
[370425624,1752015050927,-2217.97,0.00024657,2]
[370425625,1752015050936,-510.06,0.00024657,2]
[370425626,1752015050946,-1155.56,0.00024657,2]
[370425627,1752015050955,-505.64,0.00024657,2]
[370425628,1752015050964,-6012.81,0.00024657,2]
[370425629,1752015050974,-460.0,0.00024657,2]
[370425630,1752015050983,-460.0,0.00024657,2]
[370425631,1752015050993,-460.0,0.00024657,2]
[370425632,1752015051002,-460.0,0.00024657,2]
[370425633,1752015051012,-460.0,0.00024657,2]
[370425634,1752015051022,-1923.08,0.00024657,2]
[370425635,1752015051031,-173.46069517,0.00024657,2]
[370425636,1752015051041,-460.0,0.00024657,2]
[370425637,1752015051051,-1645.38,0.00024657,2]
[370425638,1752015051060,-2158.24,0.00024657,2]
[370425639,1752015051069,-460.0,0.00024657,2]
[370425640,1752015051079,-968.55,0.00024657,2]
[370425641,1752015051088,-460.0,0.00024657,2]
[370425642,1752015051098,-1258.59,0.00024657,2]
[370425643,1752015051112,-710.82,0.00024657,2]
[370425644,1752015051122,-1894.13,0.00024657,2]
[370425645,1752015051132,-460.0,0.00024657,2]
[370425646,1752015051142,-460.0,0.00024657,2]
[370425647,1752015051152,-3394.98,0.00024657,2]
[370425648,1752015051161,-1000.0,0.00024657,2]
[370425649,1752015051172,-460.0,0.00024657,2]
[370425650,1752015051182,-460.0,0.00024657,2]
[370425651,1752015051192,-460.0,0.00024657,2]
[370425652,1752015051202,-549.33,0.00024657,2]
[370425653,1752015051212,-32288.42,0.00024657,2]
[370425654,1752015051222,-2266.44,0.00024657,2]
[370425655,1752015051232,-6309.43,0.00024657,2]
[370425656,1752015051242,-3449.3,0.00024657,2]
[370425657,1752015051252,-460.0,0.00024657,2]
[370425658,1752015051262,-460.0,0.00024657,2]
[370425659,1752015051272,-310.233996,0.00024657,2]
[370425660,1752015051282,-1411.54,0.00024657,2]
[370425661,1752015051292,-2877.129755,0.00024657,2]
[370425662,1752015051302,-603.59,0.00024657,2]
[370425663,1752015051311,-460.0,0.00024657,2]
[370425664,1752015051321,-536.69,0.00024657,2]
[370425665,1752015051331,-162.113884,0.00024657,2]
[370425666,1752015051341,-157.907807,0.00024657,2]
[370425667,1752015051350,-1284.72,0.00024657,2]
[370425668,1752015051360,-2299.3,0.00024657,2]
[370425669,1752015051370,-460.0,0.00024657,2]
[370425670,1752015051380,-796.51,0.00024657,2]
[370425671,1752015051390,-574.51,0.00024657,2]
[370425672,1752015051399,-793.62,0.00024657,2]
[370425673,1752015051409,-151.0,0.00024657,7]
[370425674,1752015051418,-151.0,0.00024657,7]
[370425675,1752015051428,-151.0,0.00024657,7]
[370425676,1752015051437,-151.0,0.00024657,7]
[370425677,1752015051447,-1096.43,0.00024657,2]
[370425678,1752015051457,-151.0,0.00024657,7]
[370425679,1752015051466,-151.0,0.00024657,7]
[370425680,1752015051475,-460.0,0.00024657,2]
[370425681,1752015051486,-460.0,0.00024657,2]
[370425682,1752015051498,-151.0,0.00024657,7]
[370425683,1752015051509,-1282.96,0.00024657,2]
[370425684,1752015051521,-151.0,0.00024657,7]
[370425685,1752015051530,-884.4,0.00024657,2]
[370425686,1752015051541,-151.0,0.00024657,7]
[370425687,1752015051552,-151.0,0.00024657,7]
[370425688,1752015051563,-151.0,0.00024657,7]
[370425689,1752015051574,-151.0,0.00024657,7]
[370425690,1752015051586,-151.0,0.00024657,7]
[370425691,1752015051597,-460.0,0.00024657,2]
[370425692,1752015051608,-3107.352015,0.00024657,2]
[370425693,1752015051619,-1421.22,0.00024657,2]
[370425694,1752015051629,-460.0,0.00024657,2]
[370425695,1752015051639,-460.0,0.00024657,2]
[370425696,1752015051649,-867.29,0.00024657,2]
[370425697,1752015051659,-460.0,0.00024657,2]
[370425698,1752015051670,-460.0,0.00024657,2]
[370425699,1752015051681,-3052.64,0.00024657,2]
[370425700,1752015051692,-2133.32,0.00024657,2]
[370425701,1752015051704,-2922.903954,0.00024657,2]
[370425702,1752015051714,-1744.76,0.00024657,2]
[370425703,1752015051724,-460.0,0.00024657,2]
[370425704,1752015051734,-692.21,0.00024657,2]
[370425705,1752015051745,-1179.07,0.00024657,2]
[370425706,1752015051755,-692.21,0.00024657,2]
[370425707,1752015051766,-692.21,0.00024657,2]
[370425708,1752015051776,-692.21,0.00024657,2]
[370425709,1752015051787,-692.21,0.00024657,2]
[370425710,1752015051798,-460.0,0.00024657,2]
[370425711,1752015051809,-460.0,0.00024657,2]
[370425712,1752015051821,-692.21,0.00024657,2]
[370425713,1752015051834,-692.21,0.00024657,2]
[370425714,1752015051844,-692.21,0.00024657,2]
[370425715,1752015051853,-2882.47,0.00024657,2]
[370425716,1752015051863,-692.21,0.00024657,2]
[370425717,1752015051874,-473.96,0.00024657,2]
[370425718,1752015051885,-460.0,0.00024657,2]
[370425719,1752015051897,-1026.71,0.00024657,2]
[370425720,1752015051908,-460.0,0.00024657,2]
[370425721,1752015051918,-460.0,0.00024657,2]
[370425722,1752015051927,-907.93,0.00024657,2]
[370425723,1752015051939,-1521.21,0.00024657,2]
[370425724,1752015051949,-460.0,0.00024657,2]
[370425725,1752015051960,-1606.5,0.00024657,2]
[370425726,1752015051971,-1933.28,0.00024657,2]
[370425727,1752015051981,-460.0,0.00024657,2]
[370425728,1752015052093,-558.8,0.00024657,2]
[370425729,1752015052104,-1890.89,0.00024657,2]
[370425730,1752015052114,-219.15795431,0.00024657,2]
[370425731,1752015052123,-460.0,0.00024657,2]
[370425732,1752015052134,-460.0,0.00024657,2]
[370425733,1752015052146,-460.0,0.00024657,2]
[370425734,1752015052157,-160.0,0.00024657,7]
[370425735,1752015052166,-542.94404629,0.00024657,2]
[370425736,1752015052176,-460.0,0.00024657,2]
[370425737,1752015052185,-4506.2,0.00024657,2]
[370425738,1752015052195,-4506.2,0.00024657,2]
[370425739,1752015052204,-4506.2,0.00024657,2]
[370425740,1752015052214,-513.19,0.00024657,2]
[370425741,1752015052224,-4506.2,0.00024657,2]
[370425742,1752015052234,-460.0,0.00024657,2]
[370425743,1752015052244,-4506.2,0.00024657,2]
[370425744,1752015052253,-4506.2,0.00024657,2]
[370425745,1752015052263,-4506.2,0.00024657,2]
[370425746,1752015052272,-4506.2,0.00024657,2]
[370425747,1752015052281,-4506.2,0.00024657,2]
[370425748,1752015052290,-7409.3,0.00024657,2]
[370425749,1752015052300,-720.49,0.00024657,2]
[370425750,1752015052310,-1009.19,0.00024657,2]
[370425751,1752015052319,-18440.07,0.00024657,2]
[370425752,1752015052330,-2836.65,0.00024657,2]
[370425753,1752015052340,-460.0,0.00024657,2]
[370425754,1752015052349,-971.43,0.00024657,2]
[370425755,1752015052358,-6702.12,0.00024657,2]
[370425756,1752015052367,-1137.01,0.00024657,2]
[370425757,1752015052376,-8096.44,0.00024657,2]
[370425758,1752015052386,-460.0,0.00024657,2]
[370425759,1752015052395,-460.0,0.00024657,2]
[370425760,1752015052404,-698.45,0.00024657,2]
[370425761,1752015052414,-583.87,0.00024657,2]
[370425762,1752015052423,-2306.26,0.00024657,2]
[370425763,1752015052432,-3310.94,0.00024657,2]
[370425764,1752015052442,-460.0,0.00024657,2]
[370425765,1752015052451,-460.0,0.00024657,2]
[370425766,1752015052461,-460.0,0.00024657,2]
[370425767,1752015052470,-4276.67,0.00024657,2]
[370425768,1752015052479,-562.95,0.00024657,2]
[370425769,1752015052488,-460.0,0.00024657,2]
[370425770,1752015052499,-466.72,0.00024657,2]
[370425771,1752015052509,-460.0,0.00024657,2]
[370425772,1752015052519,-1867.83,0.00024657,2]
[370425773,1752015052529,-1008.31,0.00024657,2]
[370425774,1752015052539,-11508.15,0.00024657,2]
[370425775,1752015052548,-634.96,0.00024657,2]
[370425776,1752015052557,-460.0,0.00024657,2]
[370425777,1752015052567,-1250.72,0.00024657,2]
[370425778,1752015052577,-460.0,0.00024657,2]
[370425779,1752015052587,-460.0,0.00024657,2]
[370425780,1752015052598,-2398.94,0.00024657,2]
[370425781,1752015052608,-1534.2,0.00024657,2]
[370425782,1752015052619,-473.21,0.00024657,2]
[370425783,1752015052631,-460.0,0.00024657,2]
[370425784,1752015052641,-460.0,0.00024657,2]
[370425785,1752015052653,-460.0,0.00024657,2]
[370425786,1752015052664,-585.13,0.00024657,2]
[370425787,1752015052674,-505.42817347,0.00024657,2]
[370425788,1752015052686,-2705.41,0.00024657,2]
[370425789,1752015052696,-460.0,0.00024657,2]
[370425790,1752015052707,-460.0,0.00024657,2]
[370425791,1752015052716,-460.0,0.00024657,2]
[370425792,1752015052725,-20114.6,0.00024657,2]
[370425793,1752015052736,-460.0,0.00024657,2]
[370425794,1752015052747,-460.0,0.00024657,2]
[370425795,1752015052759,-460.0,0.00024657,2]
[370425796,1752015052769,-460.0,0.00024657,2]
[370425797,1752015052781,-160.77156159,0.00024657,2]
[370425798,1752015052792,-2097.82,0.00024657,2]
[370425799,1752015052804,-460.0,0.00024657,2]
[370425800,1752015052816,-602.82,0.00024657,2]
[370425801,1752015052834,-585.42394855,0.00024657,2]
[370425802,1752015052849,-545.12,0.00024657,2]
[370425803,1752015052860,-1730.65,0.00024657,2]
[370425804,1752015052870,-8927.14,0.00024657,2]
[370425805,1752015052881,-191.30723702,0.00024657,2]
[370425806,1752015052891,-482.16663916,0.00024657,2]
[370425807,1752015052902,-460.0,0.00024657,2]
[370425808,1752015052912,-3150.98,0.00024657,2]
[370425809,1752015052923,-966.64,0.00024657,2]
[370425810,1752015052934,-460.0,0.00024657,2]
[370425811,1752015052945,-8612.05,0.00024657,2]
[370425812,1752015052956,-460.0,0.00024657,2]
[370425813,1752015052967,-151.0,0.00024657,7]
[370425814,1752015052977,-460.0,0.00024657,2]
[370425815,1752015052987,-2283.2,0.00024657,2]
[370425816,1752015052997,-2684.21,0.00024657,2]
[370425817,1752015053007,-151.0,0.00024657,7]
[370425818,1752015053017,-151.0,0.00024657,7]
[370425819,1752015053026,-460.0,0.00024657,2]
[370425820,1752015053035,-151.0,0.00024657,7]
[370425821,1752015053044,-151.0,0.00024657,7]
[370425822,1752015053053,-1640.09,0.00024657,2]
[370425823,1752015053062,-151.0,0.00024657,7]
[370425824,1752015053072,-3857.51,0.00024657,2]
[370425825,1752015053082,-460.0,0.00024657,2]
[370425826,1752015053091,-151.0,0.00024657,7]
[370425827,1752015053100,-460.0,0.00024657,2]
[370425828,1752015053109,-151.0,0.00024657,7]
[370425829,1752015053118,-460.0,0.00024657,2]
[370425830,1752015053127,-460.0,0.00024657,2]
[370425831,1752015053137,-151.0,0.00024657,7]
[370425832,1752015053147,-2027.25,0.00024657,2]
[370425833,1752015053156,-551.55,0.00024657,2]
[370425834,1752015053166,-151.0,0.00024657,7]
[370425835,1752015053176,-151.0,0.00024657,7]
[370425836,1752015053185,-151.0,0.00024657,7]
[370425837,1752015053195,-151.0,0.00024657,7]
[370425838,1752015053205,-151.0,0.00024657,7]
[370425839,1752015053214,-7248.89,0.00024657,2]
[370425840,1752015053223,-151.0,0.00024657,7]
[370425841,1752015053233,-151.0,0.00024657,7]
[370425842,1752015053242,-2781.69,0.00024657,2]
[370425843,1752015053252,-460.0,0.00024657,2]
[370425844,1752015053261,-151.0,0.00024657,7]
[370425845,1752015053270,-460.0,0.00024657,2]
[370425846,1752015053280,-189.714301,0.00024657,7]
[370425847,1752015053289,-1892.85,0.00024657,2]
[370425848,1752015053299,-1307.77,0.00024657,2]
[370425849,1752015053308,-3287.83,0.00024657,2]
[370425850,1752015053317,-2318.43,0.00024657,2]
[370425851,1752015053327,-460.0,0.00024657,2]
[370425852,1752015053336,-461.60740163,0.00024657,2]
[370425853,1752015053346,-1110.17,0.00024657,2]
[370425854,1752015053356,-2059.27,0.00024657,2]
[370425855,1752015053366,-460.0,0.00024657,2]
[370425856,1752015053375,-2611.73,0.00024657,2]
[370425857,1752015053385,-460.0,0.00024657,2]
[370425858,1752015053394,-1123.86,0.00024657,2]
[370425859,1752015053405,-460.0,0.00024657,2]
[370425860,1752015053415,-520.24,0.00024657,2]
[370425861,1752015053425,-1189.21,0.00024657,2]
[370425862,1752015053434,-460.0,0.00024657,2]
[370425863,1752015053443,-151.0,0.00024657,7]
[370425864,1752015053453,-151.0,0.00024657,7]
[370425865,1752015053462,-460.0,0.00024657,2]
[370425866,1752015053472,-151.0,0.00024657,7]
[370425867,1752015053481,-592.04266497,0.00024657,2]
[370425868,1752015053490,-151.0,0.00024657,7]